Workbook

Sheet Søborghus Rende
A1: Vandområde | C1: Søborghus Rende | AX1: Vandområde | AZ1: Damhusåen
A3: Udlednings nr. | C3: USø11 | D3: USø12 | E3: USø13 | AX3: Udlednings nr. | AZ3: UD10b | BA3: UD10d | BB3: UD11b | BC3: UD12 | BD3: UD13 | BE3: UD14 | BF3: UD15 | BG3: UD16 | BH3: UD17 | BI3: UD18 | BJ3: UD19b | BK3: UD20b | BL3: UD21 | BM3: UD21b | BN3: UD24 | BO3: Sum
A4: Adresse | C4: Lundebakken | D4: Lundedalsvej/Nøkkerosevej | E4: Rødkløvervej | F4: SUM | AX4: Adresse | AZ4: Nødoverløb Damhusåens renseanlæg | BA4: Hovedoverløb Damhus-ledning | BB4: Åhaven | BC4: Sønderkær | BD4: Vigerslev Allé | BE4: Gårdstedet | BF4: Heldbovej | BG4: Lykkebovej | BH4: Landlystvej | BI4: Skyttegårdsvej | BJ4: Sandhusvej | BK4: Hvidovre station | BL4: Vigerslev-parken N for Dæmningen | BM4: Nødoverløb ved Torpedo-bygværket | BN4: Roskildevej | BO4: -
A5: Kloakeringstype | B5: Status | C5: Fælles | D5: Fælles | E5: Fælles | F5: - | AX5: Kloakeringstype | AY5: Status | AZ5: Fælles | BA5: Fælles | BB5: Fælles | BC5: Fælles | BD5: Fælles | BE5: Fælles | BF5: Fælles | BG5: Fælles | BH5: Fælles | BI5: Fælles | BJ5: Fælles | BK5: Fælles | BL5: Fælles | BM5: Fælles | BN5: Fælles | BO5: -
B6: Plan | C6: Fælles | D6: Fælles | E6: Fælles | F6: - | AY6: Plan | AZ6: Fælles | BA6: Fælles | BB6: Fælles | BC6: Fælles | BD6: Fælles | BE6: Fælles | BF6: Fælles | BG6: Fælles | BH6: Fælles | BI6: Fælles | BJ6: Fælles | BK6: Fælles | BL6: Fælles | BM6: Fælles | BN6: Fælles | BO6: -
B7: Strategi | C7: Fælles | D7: Fælles | E7: Fælles | F7: - | AY7: Strategi | AZ7: Fælles | BA7: Fælles | BB7: Fælles | BC7: Fælles | BD7: Fælles | BE7: Fælles | BF7: Fælles | BG7: Fælles | BH7: Fælles | BI7: Fælles | BJ7: Fælles | BK7: Fælles | BL7: Fælles | BM7: Fælles | BN7: Fælles | BO7: -
A8: Reduceret areal ha | B8: Status | C8: 7.88951 | D8: 5.676658 | E8: 9.144833 | F8: =SUM(Tabel18[[#This Row],[Lundebakken]:[Rødkløvervej]]) -> 22.711001 | AX8: Reduceret areal ha | AY8: Status | AZ8: 62.09627 | BA8: 0 | BB8: 4.926299 | BC8: 13.292068 | BD8: 9.063189 | BE8: 1.454076 | BF8: 1.523395 | BG8: 3.503314 | BH8: 1.93898 | BI8: 4.850912 | BJ8: 2.3 | BK8: 1.07056 | BL8: 284.5 | BM8: 0 | BN8: 0 | BO8: =SUM(AZ8:BN8) -> 390.519063
B9: Plan | C9: 7.88951 | D9: 5.676658 | E9: 9.144833 | F9: =SUM(Tabel18[[#This Row],[Lundebakken]:[Rødkløvervej]]) -> 22.711001 | AY9: Plan | AZ9: 62.09627 | BA9: 0 | BB9: 4.926299 | BC9: 13.292068 | BD9: 9.063189 | BE9: 1.454076 | BF9: 1.523395 | BG9: 3.503314 | BH9: 1.93898 | BI9: 4.850912 | BJ9: 2.3 | BK9: 1.07056 | BL9: 284.5 | BM9: 0 | BN9: 0 | BO9: 390.519063
B10: Strategi | C10: 7.88951 | D10: 5.676658 | E10: 9.144833 | F10: =SUM(Tabel18[[#This Row],[Lundebakken]:[Rødkløvervej]]) -> 22.711001 | AY10: Strategi | AZ10: 62.09627 | BA10: 0 | BB10: 4.926299 | BC10: 13.292068 | BD10: 9.063189 | BE10: 1.454076 | BF10: 1.523395 | BG10: 3.503314 | BH10: 1.93898 | BI10: 4.850912 | BJ10: 2.3 | BK10: 1.07056 | BL10: 284.5 | BM10: 0 | BN10: 0 | BO10: 390.519063
A11: Maks udledning l/s | B11: Status | C11: 470 | D11: 340 | E11: 550 | F11: =SUM(Tabel18[[#This Row],[Lundebakken]:[Rødkløvervej]]) -> 1360 | AX11: Maks udledning l/s | AY11: Status | AZ11: 5000 | BA11: 5000 | BB11: 700 | BC11: 3000 | BD11: 1200 | BE11: 500 | BF11: 100 | BG11: 300 | BH11: 300 | BI11: 500 | BJ11: 500 | BK11: 200 | BL11: 1500 | BM11: 0 | BN11: 1000 | BO11: 19800
B12: Plan | C12: 470 | D12: 340 | E12: 550 | F12: =SUM(Tabel18[[#This Row],[Lundebakken]:[Rødkløvervej]]) -> 1360 | AY12: Plan | AZ12: 5000 | BA12: 5000 | BB12: 700 | BC12: 3000 | BD12: 1200 | BE12: 500 | BF12: 100 | BG12: 300 | BH12: 300 | BI12: 500 | BJ12: 500 | BK12: 200 | BL12: 1500 | BM12: 0 | BN12: 1000 | BO12: 19800
B13: Strategi | C13: 470 | D13: 340 | E13: 550 | F13: =SUM(Tabel18[[#This Row],[Lundebakken]:[Rødkløvervej]]) -> 1360 | AY13: Strategi | AZ13: 5000 | BA13: 5000 | BB13: 700 | BC13: 3000 | BD13: 1200 | BE13: 500 | BF13: 100 | BG13: 300 | BH13: 300 | BI13: 500 | BJ13: 500 | BK13: 200 | BL13: 1500 | BM13: 0 | BN13: 1000 | BO13: 19800
A14: Overløbshyppighed antal/år | B14: Status | C14: 1 | D14: 1 | E14: 5 | F14: =SUM(Tabel18[[#This Row],[Lundebakken]:[Rødkløvervej]]) -> 7 | AX14: Overløbshyppighed antal/år | AY14: Status | AZ14: 2 | BA14: 1 | BB14: 0.5 | BC14: 0.1 | BD14: 0.1 | BE14: 0.1 | BF14: 0.1 | BG14: 0.1 | BH14: 0.25 | BI14: 0.3 | BJ14: 0.1 | BK14: 0.1 | BL14: 0.2 | BM14: 0 | BN14: 13 | BO14: -
B15: Plan | C15: 1 | D15: 1 | E15: 4 | F15: =SUM(Tabel18[[#This Row],[Lundebakken]:[Rødkløvervej]]) -> 6 | AY15: Plan | AZ15: 2 | BA15: 1 | BB15: 0.5 | BC15: 0.1 | BD15: 0.1 | BE15: 0.1 | BF15: 0.1 | BG15: 0.1 | BH15: 0.25 | BI15: 0.3 | BJ15: 0.1 | BK15: 0.1 | BL15: 0.2 | BM15: 0 | BN15: 13 | BO15: -
B16: Strategi | C16: 0 | D16: 0 | E16: 2.4 | F16: =SUM(Tabel18[[#This Row],[Lundebakken]:[Rødkløvervej]]) -> 2.4 | AY16: Strategi | AZ16: 1 | BA16: 0.1 | BB16: 0.05 | BC16: 0.01 | BD16: 0.01 | BE16: 0.01 | BF16: 0.01 | BG16: 0.01 | BH16: 0.025 | BI16: 0.03 | BJ16: 0.01 | BK16: 0.01 | BL16: 0.02 | BM16: 0 | BN16: 10 | BO16: -
A17: Vand m3/år | B17: Status | C17: 117 | D17: 350 | E17: 3000 | F17: =SUM(Tabel18[[#This Row],[Lundebakken]:[Rødkløvervej]]) -> 3467 | AX17: Vand m3/år | AY17: Status | AZ17: 3408 | BA17: 15000 | BB17: 500 | BC17: 1000 | BD17: 100 | BE17: 100 | BF17: 100 | BG17: 100 | BH17: 500 | BI17: 100 | BJ17: 100 | BK17: 100 | BL17: 500 | BM17: 0 | BN17: 8734 | BO17: =SUM(AZ17:BN17) -> 30342
B18: Plan | C18: 117 | D18: 350 | E18: 2400 | F18: =SUM(Tabel18[[#This Row],[Lundebakken]:[Rødkløvervej]]) -> 2867 | AY18: Plan | AZ18: 3408 | BA18: 15000 | BB18: 500 | BC18: 1000 | BD18: 100 | BE18: 100 | BF18: 100 | BG18: 100 | BH18: 500 | BI18: 100 | BJ18: 100 | BK18: 100 | BL18: 500 | BM18: 0 | BN18: 8734 | BO18: 30342
B19: Strategi | C19: 0 | D19: 0 | E19: 600 | F19: =SUM(Tabel18[[#This Row],[Lundebakken]:[Rødkløvervej]]) -> 600 | AY19: Strategi | AZ19: 1704 | BA19: 1500 | BB19: 50 | BC19: 100 | BD19: 10 | BE19: 10 | BF19: 10 | BG19: 10 | BH19: 50 | BI19: 10 | BJ19: 10 | BK19: 10 | BL19: 50 | BM19: 0 | BN19: 780 | BO19: 4304
A20: COD kg/år | B20: Status | C20: 5.85 | D20: 17.5 | E20: 150 | F20: =SUM(Tabel18[[#This Row],[Lundebakken]:[Rødkløvervej]]) -> 173.35 | AX20: COD kg/år | AY20: Status | AZ20: 170 | BA20: 750 | BB20: 25 | BC20: 50 | BD20: 5 | BE20: 5 | BF20: 5 | BG20: 5 | BH20: 25 | BI20: 5 | BJ20: 5 | BK20: 5 | BL20: 25 | BM20: 0 | BN20: 437 | BO20: 1517
B21: Plan | C21: 5.85 | D21: 17.5 | E21: 120 | F21: =SUM(Tabel18[[#This Row],[Lundebakken]:[Rødkløvervej]]) -> 143.35 | AY21: Plan | AZ21: 170 | BA21: 750 | BB21: 25 | BC21: 50 | BD21: 5 | BE21: 5 | BF21: 5 | BG21: 5 | BH21: 25 | BI21: 5 | BJ21: 5 | BK21: 5 | BL21: 25 | BM21: 0 | BN21: 437 | BO21: 1517
B22: Strategi | C22: 0 | D22: 0 | E22: 30 | F22: =SUM(Tabel18[[#This Row],[Lundebakken]:[Rødkløvervej]]) -> 30 | AY22: Strategi | AZ22: 85 | BA22: 75 | BB22: 2 | BC22: 5.9 | BD22: 0.5 | BE22: 0.5 | BF22: 0.5 | BG22: 0.5 | BH22: 2.5 | BI22: 0.5 | BJ22: 0.5 | BK22: 0.5 | BL22: 2.5 | BM22: 0 | BN22: 39 | BO22: 215.4
A23: Total N kg/år | B23: Status | C23: 0.234 | D23: 0.7 | E23: 6 | F23: =SUM(Tabel18[[#This Row],[Lundebakken]:[Rødkløvervej]]) -> 6.934 | AX23: Total N kg/år | AY23: Status | AZ23: 6.8 | BA23: 30 | BB23: 1 | BC23: 2 | BD23: 0.2 | BE23: 0.2 | BF23: 0.2 | BG23: 0.2 | BH23: 1 | BI23: 0.2 | BJ23: 0.2 | BK23: 0.2 | BL23: 1 | BM23: 0 | BN23: 17.5 | BO23: 60.7
B24: Plan | C24: 0.234 | D24: 0.7 | E24: 4.8 | F24: =SUM(Tabel18[[#This Row],[Lundebakken]:[Rødkløvervej]]) -> 5.734 | AY24: Plan | AZ24: 6.8 | BA24: 30 | BB24: 1 | BC24: 2 | BD24: 0.2 | BE24: 0.2 | BF24: 0.2 | BG24: 0.2 | BH24: 1 | BI24: 0.2 | BJ24: 0.2 | BK24: 0.2 | BL24: 1 | BM24: 0 | BN24: 17.5 | BO24: 60.7
B25: Strategi | C25: 0 | D25: 0 | E25: 1.2 | F25: =SUM(Tabel18[[#This Row],[Lundebakken]:[Rødkløvervej]]) -> 1.2 | AY25: Strategi | AZ25: 3.4 | BA25: 3 | BB25: 0.08 | BC25: 0.2 | BD25: 0.02 | BE25: 0.02 | BF25: 0.02 | BG25: 0.02 | BH25: 0.1 | BI25: 0.02 | BJ25: 0.02 | BK25: 0.02 | BL25: 0.1 | BM25: 0 | BN25: 1.6 | BO25: 8.62
A26: Total P kg/år | B26: Status | C26: 0.0585 | D26: 0.175 | E26: 1.5 | F26: =SUM(Tabel18[[#This Row],[Lundebakken]:[Rødkløvervej]]) -> 1.7335 | AX26: Total P kg/år | AY26: Status | AZ26: 1.7 | BA26: 7.5 | BB26: 0.25 | BC26: 0.5 | BD26: 0.05 | BE26: 0.05 | BF26: 0.05 | BG26: 0.05 | BH26: 0.25 | BI26: 0.05 | BJ26: 0.05 | BK26: 0.05 | BL26: 0.25 | BM26: 0 | BN26: 4.4 | BO26: 15.2
B27: Plan | C27: 0.0585 | D27: 0.175 | E27: 1.2 | F27: =SUM(Tabel18[[#This Row],[Lundebakken]:[Rødkløvervej]]) -> 1.4335 | AY27: Plan | AZ27: 1.7 | BA27: 7.5 | BB27: 0.25 | BC27: 0.5 | BD27: 0.05 | BE27: 0.05 | BF27: 0.05 | BG27: 0.05 | BH27: 0.25 | BI27: 0.05 | BJ27: 0.05 | BK27: 0.05 | BL27: 0.25 | BM27: 0 | BN27: 4.4 | BO27: 15.2
B28: Strategi | C28: 0 | D28: 0 | E28: 0.3 | F28: =SUM(Tabel18[[#This Row],[Lundebakken]:[Rødkløvervej]]) -> 0.3 | AY28: Strategi | AZ28: 0.8 | BA28: 0.75 | BB28: 0.02 | BC28: 0.06 | BD28: 0.005 | BE28: 0.005 | BF28: 0.005 | BG28: 0.005 | BH28: 0.025 | BI28: 0.005 | BJ28: 0.005 | BK28: 0.005 | BL28: 0.025 | BM28: 0 | BN28: 0.4 | BO28: =SUM(AZ28:BN28) -> 2.115
